fUSD/lending_fUSD_20240823
["ID","MTS","AMOUNT","RATE_DAILY","PERIOD"]
[335702363,1724451033405,-500.0,0.00011049,2]
[335702364,1724451033425,-500.0,0.00011049,2]
[335702365,1724451033434,-500.0,0.00011049,2]
[335702366,1724451033443,-500.0,0.00011049,2]
[335702367,1724451033453,-500.0,0.00011049,2]
[335702368,1724451033462,-500.0,0.00011049,2]
[335702369,1724451033472,-500.0,0.00011049,2]
[335702370,1724451033483,-500.0,0.00011049,2]
[335702371,1724451033493,-500.0,0.00011049,2]
[335702372,1724451033503,-500.0,0.00011049,2]
[335702373,1724451033513,-500.0,0.00011049,2]
[335702374,1724451033523,-500.0,0.00011049,2]
[335702375,1724451033533,-549.4953981,0.00011049,2]
[335702376,1724451033543,-500.0,0.00011049,2]
[335702377,1724451033552,-500.0,0.00011049,2]
[335702378,1724451033736,-500.0,0.00011049,2]
[335702379,1724451033746,-500.0,0.00011049,2]
[335702380,1724451033756,-500.0,0.00011049,2]
[335702381,1724451033766,-829626.45304347,0.0001105,3]
[335702382,1724451033781,-494.74970491,0.0001105,3]
[335702383,1724451033797,-200037.03382888,0.0001105,3]
[335702384,1724451033808,-4259.61070056,0.0001105,3]
[335702385,1724451033821,-1735.60584608,0.0001105,3]
[335702386,1724451033837,-6148.290112,0.0001105,3]
[335702387,1724451033848,-698.721,0.0001105,3]
[335702388,1724451033860,-307.44846,0.0001105,3]
[335702389,1724451033876,-1618.07633989,0.0001105,3]
[335702390,1724451033887,-1154.86373683,0.0001105,3]
[335702391,1724451033899,-1138.55742,0.0001105,3]
[335702392,1724451033929,-51672.24079824,0.0001105,3]
[335702393,1724451033943,-463.05,0.0001105,3]
[335702396,1724451038474,-2227.42494,0.0001105,3]
[335702397,1724451038486,-2015.79591799,0.0001105,3]
[335702398,1724451038497,-1491.4619055,0.0001105,3]
[335702399,1724451038516,-783.45476951,0.0001105,3]
[335702401,1724451038527,-6035.8958172,0.0001105,3]
[335702403,1724451038538,-11330.14277034,0.0001105,3]
[335702404,1724451038550,-450.98577297,0.0001105,3]
[335702405,1724451038566,-786932.52438604,0.0001105,3]
[335702406,1724451038578,-1203.88782761,0.0001105,3]
[335702407,1724451038590,-782.42871167,0.0001105,3]
[335702408,1724451038602,-3234.3057,0.0001105,3]
[335702409,1724451038615,-3444.51359154,0.0001105,3]
[335702410,1724451038628,-430.74722504,0.0001105,3]
[335702425,1724451040372,-347.50656736,0.0001095,2]
[335702426,1724451040473,-19.44489757,0.0001095,2]
[335702427,1724451040484,-8767.61313114,0.0001105,3]
[335702428,1724451042027,-3110.79170714,0.0001105,3]
[335702429,1724451042039,-1615.6437149,0.0001105,3]
[335702430,1724451042081,-6460.50882622,0.0001105,3]
[335702431,1724451042092,-1810.378,0.0001105,3]
[335702432,1724451042105,-4073.39249077,0.0001105,3]
[335702437,1724451042211,-31783.08700833,0.0001105,3]
[335702439,1724451042224,-3589.04915334,0.0001105,3]
[335702470,1724451043062,-1449.9999998,0.0001105,3]
[335702477,1724451043307,-327.018325,0.0001105,3]
[335702478,1724451043323,-283.18708552,0.0001105,3]
[335702479,1724451043334,-308.49806753,0.0001105,3]
[335702480,1724451045952,-325.43719678,0.0001105,3]
[335702481,1724451045982,-3073.37977738,0.0001105,3]
[335702482,1724451046009,-3673.24567214,0.0001105,3]
[335702483,1724451046115,-250.10479714,0.0001105,3]
[335702484,1724451046126,-5008.17589993,0.0001105,3]
[335702485,1724451046137,-629461.29799238,0.0001105,3]
[335702486,1724451046148,-27821.01315486,0.0001105,3]
[335702487,1724451046160,-6074.499065,0.0001105,3]
[335702488,1724451046172,-9109.36606121,0.0001105,3]
[335702489,1724451046183,-12780.09052708,0.0001105,3]
[335702490,1724451046199,-164603.52477989,0.0001105,3]
[335702491,1724451046211,-815.6971792,0.0001105,3]
[335702492,1724451046222,-431.885,0.0001105,3]
[335702493,1724451046235,-23991.71834705,0.0001105,3]
[335702494,1724451046249,-23914.33305605,0.0001105,3]
[335702495,1724451046261,-611.7165479,0.0001105,3]
[335702525,1724451053191,477.95,9.6e-05,2]
[335702526,1724451062560,1050.0,0.0001,2]
[335702534,1724451129200,485.07840464,0.0001,2]
[335702535,1724451172791,170.51759848,0.0001,2]
[335702536,1724451180527,182.01298739,0.0001,2]
[335702537,1724451189862,150.178261,0.00025,60]
[335702538,1724451193992,2000.0,0.00027,120]
[335702539,1724451198640,500.0,0.00027,120]
[335702540,1724451203421,1051.05728683,0.0001,2]
[335702541,1724451289507,181.91400281,0.0001,2]
[335702542,1724451366936,23900.0,9.971e-05,2]
[335702543,1724451426775,486.56,9.941e-05,2]
[335702544,1724451511060,1852.42,9.905e-05,2]
[335702545,1724451584023,250.0,9.903e-05,2]
[335702546,1724451614946,200.0,9.884e-05,2]
[335702547,1724451626333,200.0,9.884e-05,2]
[335702548,1724451664856,176.73,9.862e-05,2]
[335702549,1724451726477,436.95,9.857e-05,2]
[335702550,1724451732718,-633.0,0.00010614,2]
[335702551,1724451732742,-170.82,0.00010615,2]
[335702552,1724451732764,-200.0,0.00010626,2]
[335702553,1724451732787,-150.0,0.00010749,2]
[335702554,1724451732808,-366.95146492,0.0001075,2]
[335702555,1724451732828,-1000.0,0.0001075,2]
[335702556,1724451732850,-19263.22853508,0.0001075,2]
[335702557,1724451737802,-500.0,0.00010745,2]
[335702558,1724451737824,-4500.0,0.0001075,2]
[335702559,1724451743588,-2000.0,0.0001075,2]
[335702560,1724451747501,3233.0,0.00027,120]
[335702561,1724451797779,500.0,0.00027,120]
[335702562,1724451805294,1000.0,9.881e-05,2]
[335702563,1724451806642,3234.94,0.0001,2]
[335702564,1724451868646,508.49,8.219e-05,2]
[335702565,1724451917179,23900.0,9.854e-05,2]
[335702566,1724451920350,2375.10824674,9e-05,2]
[335702570,1724451954060,1379.39370099,9.962e-05,2]
[335702571,1724451954723,4491.09998104,6.94e-05,2]
[335702572,1724451959971,15791.52514919,9.962e-05,2]
[335702575,1724451990572,527.29898033,8.412e-05,2]
[335702576,1724452002853,243.28,9.826e-05,2]
[335702583,1724452039036,150.71639531,9.937e-05,2]
[335702584,1724452040208,762.0,0.0001,10]
[335702586,1724452077857,1022.10025708,0.0001,2]
[335702651,1724452184250,347.69615481,0.00010009,2]
[335702652,1724452192922,250.0,9.778e-05,2]
[335702657,1724452207926,231.1,9.763e-05,2]
[335702658,1724452211502,155.0,0.00010009,2]
[335702664,1724452232145,-370.51643875,0.00010026,2]
[335702665,1724452232155,-155.0,0.00010026,2]
[335702666,1724452232166,-330.15183337,0.00010026,2]
[335702667,1724452232177,-190.06841136,0.00010026,2]
[335702668,1724452232187,-2138.06707527,0.000101,2]
[335702669,1724452232197,-508.49,0.00010469,2]
[335702670,1724452232208,-155.36400518,0.00010471,2]
[335702671,1724452232219,-454.83956636,0.00010471,2]
[335702672,1724452232230,-500.0,0.00010657,2]
[335702673,1724452232240,-500.0,0.00010666,2]
[335702674,1724452232251,-500.0,0.00010674,2]
[335702675,1724452232262,-300.0,0.00010682,2]
[335702676,1724452232273,-500.0,0.00010683,2]
[335702677,1724452232284,-500.0,0.00010692,2]
[335702678,1724452232295,-300.0,0.00010699,2]
[335702679,1724452232305,-761.8685,0.000107,2]
[335702680,1724452232315,-500.0,0.00010701,2]
[335702681,1724452232326,-500.0,0.0001071,2]
[335702682,1724452232337,-500.0,0.00010718,2]
[335702683,1724452232347,-500.0,0.00010727,2]
[335702684,1724452232357,-500.0,0.00010736,2]
[335702685,1724452232368,-74236.77146492,0.0001075,2]
[335702687,1724452232378,-1000.0,0.0001075,2]
[335702689,1724452232388,-4833.6746,0.0001075,2]
[335702691,1724452232399,-500.0,0.0001075,2]
[335702693,1724452232409,-156979.09904828,0.0001075,2]
[335702695,1724452232421,-535.8515108,0.0001075,2]
[335702697,1724452232434,-1000.0,0.0001075,2]
[335702700,1724452232446,-3089.71388745,0.0001075,2]
[335702702,1724452232458,-669.94125223,0.0001075,2]
[335702704,1724452232470,-609.67999998,0.0001075,2]
[335702706,1724452232482,-959.0,0.0001075,2]
[335702709,1724452232496,-2122.23370674,0.0001075,2]
[335702711,1724452232509,-1143.19843654,0.0001075,2]
[335702715,1724452232521,-607.20000026,0.0001075,2]
[335702719,1724452232533,-600.0,0.0001075,2]
[335702721,1724452232545,-571.61940899,0.0001075,2]
[335702723,1724452232558,-1908.19961553,0.0001075,2]
[335702725,1724452232570,-5371.78642001,0.0001075,2]
[335702729,1724452232608,-2743.0,0.0001075,2]
[335702734,1724452232648,-1409.39774727,0.0001075,2]
[335702738,1724452232690,-2584.73800879,0.0001075,2]
[335702744,1724452232740,-307.8334,0.0001075,2]
[335702758,1724452238184,-61787.50755713,0.0001075,2]
[335702760,1724452238194,-2500.0,0.0001075,2]
[335702761,1724452238204,-500.0,0.00010754,2]
[335702762,1724452238458,-500.0,0.00010762,2]
[335702763,1724452238479,-500.0,0.00010771,2]
[335702764,1724452238493,-631.27958502,0.00010773,2]
[335702765,1724452238504,-500.0,0.00010773,2]
[335702766,1724452238515,-500.0,0.0001078,2]
[335702767,1724452238525,-500.0,0.00010789,2]
[335702768,1724452238536,-1177.57781457,0.00010797,2]
[335702769,1724452238546,-500.0,0.00010798,2]
[335702770,1724452238555,-367301.19916949,0.000108,2]
[335702771,1724452238566,-500.0,0.00010806,2]
[335702772,1724452238575,-500.0,0.00010815,2]
[335702773,1724452238587,-500.0,0.00010824,2]
[335702774,1724452238598,-500.0,0.00010833,2]
[335702776,1724452238607,-500.0,0.00010842,2]
[335702777,1724452238617,-500.0,0.0001085,2]
[335702779,1724452238626,-500.0,0.00010859,2]
[335702781,1724452238635,-500.0,0.00010868,2]
[335702782,1724452238645,-500.0,0.00010877,2]
[335702783,1724452238654,-92240.68817435,0.0001088,2]
[335702784,1724452238664,-155.0,0.00010888,2]
[335702785,1724452238674,-28076.72740113,0.00010899,2]
[335702786,1724452238684,-28076.72740108,0.00010899,2]
[335702787,1724452238694,-28076.72740108,0.00010899,2]
[335702788,1724452238704,-28076.72740108,0.00010899,2]
[335702789,1724452238714,-28076.72740108,0.00010899,2]
[335702790,1724452238723,-28076.72740108,0.00010899,2]
[335702791,1724452238733,-28076.72740108,0.00010899,2]
[335702792,1724452238743,-28076.72740108,0.00010899,2]
[335702793,1724452238752,-28076.72740108,0.00010899,2]
[335702794,1724452238761,-28076.72740108,0.000109,2]
[335702795,1724452238771,-399.17925032,0.000109,2]
[335702796,1724452238780,-1500.0,0.00010927,2]
[335702797,1724452238790,-304.32561,0.0001094,2]
[335702798,1724452238799,-1500.0,0.00010946,2]
[335702799,1724452238809,-167.14666384,0.0001095,2]
[335702800,1724452238818,-2324.21109593,0.0001095,2]
[335702801,1724452238828,-346.0545,0.0001095,2]
[335702802,1724452238837,-296.1084,0.0001095,2]
[335702803,1724452238847,-1000.0,0.0001095,2]
[335702804,1724452238857,-500.0,0.00010958,2]
[335702805,1724452238867,-500.0,0.00010958,2]
[335702806,1724452238877,-500.0,0.00010958,2]
[335702807,1724452238886,-500.0,0.00010958,2]
[335702808,1724452238896,-442.9,0.00010958,2]
[335702809,1724452238905,-500.0,0.00010958,2]
[335702810,1724452238915,-500.0,0.00010958,2]
[335702811,1724452238924,-363.43985544,0.00010958,2]
[335702812,1724452238934,-500.0,0.00010958,2]
[335702813,1724452238943,-500.0,0.00010958,2]
[335702814,1724452238953,-500.0,0.00010958,2]
[335702815,1724452238962,-500.0,0.00010958,2]
[335702816,1724452238972,-500.0,0.00010958,2]
[335702817,1724452238981,-500.0,0.00010958,2]
[335702818,1724452238991,-150.0,0.00010958,2]
[335702819,1724452239000,-155.12,0.00010959,2]
[335702820,1724452239009,-150.0,0.00010959,2]
[335702821,1724452239019,-152.71,0.00010959,2]
[335702822,1724452239028,-464.05,0.00010959,2]
[335702823,1724452239037,-250.0,0.00010959,2]
[335702824,1724452239047,-356.68,0.00010959,2]
[335702825,1724452239056,-166.81,0.00010959,2]
[335702826,1724452239065,-1361.24369803,0.00010962,2]
[335702827,1724452239075,-208.82926497,0.00010973,2]
[335702828,1724452239085,-500.0,0.00010973,2]
[335702829,1724452239094,-500.0,0.00010973,2]
[335702830,1724452239103,-231.1,0.00010983,2]
[335702831,1724452239113,-963.30140062,0.00010989,2]
[335702832,1724452239122,-522.16077607,0.00010993,2]
[335702833,1724452239132,-9420.62251656,0.00010997,2]
[335702834,1724452239142,-1500.0,0.00010997,2]
[335702835,1724452239151,-5949.999999,0.00010999,2]
[335702836,1724452239160,-528.11113729,0.00010999,2]
[335702837,1724452239169,-522209.838928,0.00011,2]
[335702838,1724452239181,-305978.83877592,0.00011,2]
[335702839,1724452239192,-668.26362144,0.00011,2]
[335702840,1724452239203,-617.39786154,0.00011,2]
[335702841,1724452239214,-311.21120683,0.00011,2]
[335702842,1724452239226,-29405.59629533,0.00011,2]
[335702843,1724452239237,-795.0000001,0.00011,2]
[335702844,1724452239252,-7991.34343518,0.00011,2]
[335702845,1724452239264,-32211.70718728,0.00011,2]
[335702846,1724452239275,-6912.47775104,0.00011,2]
[335702847,1724452239286,-58096.69761641,0.00011,2]
[335702848,1724452239298,-1849.01762945,0.00011,2]
[335702849,1724452239309,-2730.40354718,0.00011,2]
[335702850,1724452239320,-25299.15984209,0.00011,2]
[335702851,1724452239331,-4070.08297907,0.00011,2]
[335702852,1724452239343,-319.8,0.00011,2]
[335702853,1724452239355,-6847.06981176,0.00011,2]
[335702854,1724452239366,-468.50164004,0.00011,2]
[335702855,1724452239382,-60924.39334028,0.00011,2]
[335702856,1724452239842,-499448.00562833,0.00011,2]
[335702857,1724452239863,-382.86005199,0.00011,2]
[335702863,1724452240258,-678.75769103,0.00011,2]
[335702864,1724452240339,-24001.74223655,0.00011,2]
[335702865,1724452240351,-392.85540526,0.00011,2]
[335702866,1724452240362,-991.46458985,0.00011,2]
[335702867,1724452240428,-285134.85253457,0.00011,2]
[335702868,1724452240437,-15201318.19864293,0.00011,2]
[335702869,1724452240449,-3291.39065368,0.00011,2]
[335702870,1724452240464,-891.51412651,0.00011,2]
[335702871,1724452240531,-1396.69046004,0.00011,2]
[335702872,1724452240543,-2409.35153101,0.00011,2]
[335702873,1724452240555,-416414.31391161,0.00011,2]
[335702874,1724452240566,-1092.27862809,0.00011,2]
[335702875,1724452240577,-1225.9364753,0.00011,2]
[335702876,1724452240594,-1548.34307602,0.00011,2]
[335702877,1724452240604,-509.73860691,0.00011,2]
[335702878,1724452240616,-649.02,0.00011,2]
[335702879,1724452240627,-1850.45692418,0.00011,2]
[335702880,1724452240639,-5826.37879691,0.00011,2]
[335702881,1724452240655,-1159658.61328137,0.00011,2]
[335702882,1724452240666,-59472.75,0.00011,2]
[335702883,1724452240765,-2999.08700833,0.00011,2]
[335702884,1724452240777,-306.54,0.00011,2]
[335702885,1724452240788,-1367.59375518,0.00011,2]
[335702886,1724452240834,-607.5499219,0.00011,2]
[335702887,1724452240850,-15240.96322548,0.00011,2]
[335702888,1724452240866,-644.10641409,0.00011,2]
[335702889,1724452240883,-839.91,0.00011,2]
[335702890,1724452240895,-549.4485,0.00011,2]
[335702907,1724452243265,-500.0,0.00010648,2]
[335702909,1724452243274,-453.43497616,0.000109,2]
[335702912,1724452243284,-500.0,0.00010958,2]
[335702915,1724452243294,-119847.41955642,0.00011,2]
[335702917,1724452243305,-127767.92865827,0.00011,2]
[335702919,1724452243316,-857.21088001,0.00011,2]
[335702921,1724452243328,-101192.23546185,0.00011,2]
[335702926,1724452243364,-984.0933217,0.00011,2]
[335702928,1724452243380,-832.28687525,0.00011,2]
[335702929,1724452243391,-3401.48620004,0.00011,2]
[335702930,1724452243402,-800.90047991,0.00011,2]
[335702932,1724452243414,-11339.79333542,0.00011,2]
[335702934,1724452243425,-636.82035561,0.00011,2]
[335702936,1724452243496,-1098.61123021,0.00011,2]
[335702990,1724452246193,-398.4828563,0.00011,2]
[335702991,1724452246205,-4492.40548952,0.00011,2]
[335702992,1724452246291,-758663.35280023,0.00011,2]
[335702993,1724452246301,-3144.75596649,0.00011,2]
[335702994,1724452246377,-11136.41285363,0.00011,2]
[335702995,1724452246388,-3145.21205917,0.00011,2]
[335702996,1724452246399,-253.52,0.00011,2]
[335702997,1724452246409,-1482.59,0.00011,2]
[335702998,1724452246421,-25950.4346953,0.00011,2]
[335702999,1724452246432,-60712.14150242,0.00011,2]
[335703004,1724452374160,491.32,8.219e-05,2]
[335703005,1724452398960,500.0,0.00027,120]
[335703006,1724452470005,150.0,0.0001,2]
[335703007,1724452502392,243.28,9.862e-05,2]
[335703008,1724452543554,2671.68,9.839e-05,2]
[335703009,1724452659131,15563.77,9.808e-05,2]
[335703010,1724452669134,555.082407,0.00025,64]
[335703011,1724452673321,555.082407,0.00025,71]
[335703012,1724452677002,555.082407,0.00025,78]
[335703013,1724452680689,555.082407,0.00025,85]
[335703015,1724452686094,250.0,9.808e-05,2]
[335703016,1724452700978,555.082407,0.00025,92]
[335703017,1724452716337,333.082407,0.00025,64]
[335703018,1724452720451,333.082407,0.00025,71]
[335703019,1724452725726,333.082407,0.00025,78]
[335703020,1724452747062,275.082407,0.00025,65]
[335703021,1724452769178,221.34,9.788e-05,2]
[335703024,1724452866066,1050.0,0.0001,2]
[335703027,1724452883368,800.0,9.748e-05,2]
[335703029,1724452996871,500.0,0.00027,120]
[335703033,1724453039180,466.75,8.219e-05,2]
[335703034,1724453180373,250.0,9.788e-05,2]
[335703035,1724453194981,3387.16834659,0.00010009,2]
[335703036,1724453224871,525.806,0.00025,60]
[335703037,1724453227316,150.0,9.937e-05,2]
[335703109,1724453398545,3000.0,0.00027,120]
[335703112,1724453410571,210.67,9.741e-05,2]
[335703113,1724453428603,360.0,9.746e-05,2]
[335703121,1724453432323,-208.05034359,0.000103,2]
[335703124,1724453432334,-230.92843505,0.000104,3]
[335703126,1724453432347,-69.07156495,0.000104,3]
[335703127,1724453432357,-466.75,0.00010463,2]
[335703128,1724453432368,-442.3726,0.000105,2]
[335703130,1724453432379,-600.0,0.000105,3]
[335703132,1724453432389,-208.05034359,0.000105,2]
[335703134,1724453432400,-4301.345,0.0001055,2]
[335703136,1724453432412,-500.0,0.00010586,2]
[335703138,1724453432429,-300.0,0.00010594,2]
[335703140,1724453432440,-500.0,0.00010595,2]
[335703142,1724453432452,-299.99,0.00010595,2]
[335703144,1724453432463,-687.03,0.00010595,2]
[335703146,1724453432474,-150.0,0.00010599,2]
[335703147,1724453432485,-4913.7551,0.000106,2]
[335703148,1724453432495,-21826.59884344,0.000106,2]
[335703149,1724453432508,-8311.72992793,0.000106,2]
[335703150,1724453432521,-1991.81902353,0.000106,2]
[335703151,1724453432534,-2052.29358811,0.000106,2]
[335703152,1724453432546,-339.77999796,0.000106,2]
[335703153,1724453432558,-502.90722895,0.000106,2]
[335703154,1724453432571,-55309.58290316,0.000106,2]
[335703155,1724453432584,-865.31617129,0.000106,2]
[335703156,1724453432601,-8799.97231563,0.000106,2]
[335703157,1724453432611,-449.5209,0.000106,2]
[335703158,1724453432622,-34930.9169,0.000106,2]
[335703159,1724453432632,-81.61115092,0.000106,3]
[335703160,1724453432644,-475.95953039,0.000106,3]
[335703161,1724453432656,-442.42931869,0.000106,3]
[335703162,1724453432667,-98.57990121,0.000106,2]
[335703163,1724453432680,-994.87575444,0.000106,2]
[335703164,1724453432692,-1406.54434435,0.000106,2]
[335703165,1724453432703,-500.0,0.00010604,2]
[335703166,1724453432714,-500.0,0.00010613,2]
[335703167,1724453432724,-500.0,0.00010622,2]
[335703168,1724453432735,-500.0,0.0001063,2]
[335703169,1724453432745,-500.0,0.00010639,2]
[335703170,1724453432756,-500.0,0.0001065,2]
[335703171,1724453432766,-1000.0,0.0001065,2]
[335703172,1724453432777,-3532.94625659,0.00010699,2]
[335703173,1724453432787,-7212.93262178,0.000107,2]
[335703174,1724453432799,-8529.42497305,0.000107,2]
[335703175,1724453432811,-684.71908266,0.000107,2]
[335703176,1724453432823,-516.47725402,0.000107,2]
[335703177,1724453432836,-280.01489541,0.000107,2]
[335703178,1724453432847,-381.19659786,0.000107,2]
[335703183,1724453438430,-563.31326908,0.000107,2]
[335703184,1724453438442,-428.61941707,0.000107,2]
[335703185,1724453438454,-1543.91735422,0.000107,2]
[335703186,1724453438466,-7293.58596012,0.000107,2]
[335703187,1724453438479,-8233.67288528,0.000107,2]
[335703188,1724453438491,-7457.2856901,0.000107,2]
[335703189,1724453438502,-1114.47748706,0.000107,2]
[335703190,1724453438514,-2678.25624948,0.000107,2]
[335703191,1724453438525,-815.0,0.000107,2]
[335703192,1724453438538,-655.43194,0.000107,2]
[335703193,1724453438548,-14346.46992959,0.000107,2]
[335703194,1724453438560,-867.57638522,0.000107,2]
[335703195,1724453438572,-620.0,0.000107,2]
[335703196,1724453438588,-329.43847413,0.000107,2]
[335703197,1724453438600,-310.24010705,0.000107,2]
[335703198,1724453438611,-180137.94942682,0.000107,2]
[335703199,1724453438620,-1300.0,0.000107,3]
[335703200,1724453438630,-686.7663419,0.00010713,2]
[335703201,1724453438639,-288.21949449,0.00010799,2]
[335703202,1724453438651,-1700.0,0.000108,3]
[335703203,1724453438661,-155.0,0.00010852,2]
[335703204,1724453438673,-454.83956636,0.00010852,2]
[335703205,1724453438681,-375.3169646,0.00010858,2]
[335703206,1724453438690,-155.0,0.00010861,2]
[335703207,1724453438699,-3035.12551289,0.00010888,2]
[335703208,1724453438708,-209.52831458,0.00010888,2]
[335703209,1724453438718,-2845.4468,0.0001089,2]
[335703210,1724453438728,-1678.38940974,0.00010899,2]
[335703212,1724453438738,-195.00444113,0.000109,2]
[335703214,1724453438747,-185.00290264,0.000109,2]
[335703216,1724453438757,-156.78475644,0.000109,2]
[335703218,1724453438766,-300.0,0.000109,3]
[335703221,1724453438777,-1500.0,0.00010908,2]
[335703223,1724453438787,-201.78608961,0.0001095,2]
[335703225,1724453438797,-2843.45987302,0.00010956,6]
[335703227,1724453438807,-500.0,0.00010958,2]
[335703229,1724453438817,-500.0,0.00010958,2]
[335703231,1724453438827,-500.0,0.00010958,2]
[335703233,1724453438836,-500.0,0.00010958,2]
[335703235,1724453438845,-614.6,0.00010958,2]
[335703237,1724453438854,-581.25,0.00010958,2]
[335703239,1724453438863,-533.2477407,0.00010958,2]
[335703241,1724453438872,-500.0,0.00010958,2]
[335703243,1724453438882,-500.0,0.00010958,2]
[335703245,1724453438890,-261.3189466,0.00010958,2]
[335703247,1724453438899,-500.0,0.00010958,2]
[335703249,1724453438908,-168.42,0.00010959,2]
[335703251,1724453438917,-250.0,0.00010959,2]
[335703252,1724453438928,-150.0,0.00010959,2]
[335703253,1724453438938,-187.33,0.00010959,2]
[335703255,1724453438947,-360.0,0.00010964,2]
[335703258,1724453438957,-800.0,0.00010966,2]
[335703260,1724453438967,-600.0,0.00010973,2]
[335703261,1724453438976,-432.52,0.00010973,2]
[335703262,1724453438985,-1319.94213382,0.00010973,2]
[335703263,1724453438994,-161.40044995,0.00010973,2]
[335703264,1724453439004,-191.52496414,0.00010973,2]
[335703265,1724453439014,-569.90787309,0.00010973,2]
[335703266,1724453439023,-151.02554851,0.00010994,2]
[335703267,1724453439033,-215.29269062,0.00010997,2]
[335703268,1724453439043,-181.57,0.00010998,2]
[335703269,1724453439052,-500.0,0.00010998,2]
[335703270,1724453439061,-500.0,0.00010998,2]
[335703271,1724453439071,-500.0,0.00010998,2]
[335703272,1724453439080,-614.6,0.00010998,2]
[335703273,1724453439089,-581.25,0.00010998,2]
[335703274,1724453439098,-500.0,0.00010998,2]
[335703275,1724453439108,-500.0,0.00010998,2]
[335703276,1724453439117,-500.0,0.00010999,2]
[335703277,1724453439129,-503.34087592,0.00010999,2]
[335703278,1724453439138,-500.0,0.00010999,2]
[335703279,1724453439148,-500.0,0.00010999,2]
[335703280,1724453439157,-500.0,0.00010999,2]
[335703281,1724453439168,-500.0,0.00010999,2]
[335703282,1724453439179,-500.0,0.00010999,2]
[335703283,1724453439188,-500.0,0.00010999,2]
[335703284,1724453439199,-500.0,0.00010999,2]
[335703285,1724453439207,-500.0,0.00010999,2]
[335703286,1724453439216,-614.6,0.00010999,2]
[335703287,1724453439225,-614.6,0.00010999,2]
[335703288,1724453439235,-614.6,0.00010999,2]
[335703289,1724453439243,-614.6,0.00010999,2]
[335703290,1724453439252,-581.25,0.00010999,2]
[335703291,1724453439261,-581.25,0.00010999,2]
[335703292,1724453439270,-581.25,0.00010999,2]
[335703293,1724453439279,-581.25,0.00010999,2]
[335703294,1724453439288,-259.12337867,0.00010999,2]
[335703295,1724453439297,-500.0,0.00010999,2]
[335703296,1724453439306,-500.0,0.00010999,2]
[335703297,1724453439315,-500.0,0.00010999,2]
[335703298,1724453439325,-500.0,0.00010999,2]
[335703299,1724453439333,-500.0,0.00010999,2]
[335703300,1724453439342,-500.0,0.00010999,2]
[335703301,1724453439351,-500.0,0.00010999,2]
[335703302,1724453439360,-609.64,0.00010999,2]
[335703303,1724453439369,-500.0,0.00010999,2]
[335703304,1724453439378,-500.0,0.00010999,2]
[335703305,1724453439387,-500.0,0.00010999,2]
[335703306,1724453439396,-500.0,0.00010999,2]
[335703307,1724453439405,-500.0,0.00010999,2]
[335703308,1724453439414,-500.0,0.00010999,2]
[335703309,1724453439425,-500.0,0.00010999,2]
[335703310,1724453439434,-500.0,0.00010999,2]
[335703311,1724453439443,-500.0,0.00010999,2]
[335703312,1724453439452,-500.0,0.00010999,2]
[335703313,1724453439461,-500.0,0.00010999,2]
[335703314,1724453439471,-500.0,0.00010999,2]
[335703315,1724453439480,-500.0,0.00010999,2]
[335703316,1724453439489,-500.0,0.00010999,2]
[335703317,1724453439499,-500.0,0.00010999,2]
[335703318,1724453439509,-500.0,0.00010999,2]
[335703319,1724453439519,-500.0,0.00010999,2]
[335703320,1724453439528,-500.0,0.00010999,2]
[335703321,1724453439538,-500.0,0.00010999,2]